[Event "Titled Tuesday Blitz February 28 Late 2023"]
[White "Senft, Sean"]
[Black "Womacka, Mathias"]
[WhiteFideId "2044960"]
[BlackFideId "4611390"]
[WhiteElo "1989"]
[BlackElo "2377"]
[Result "0-1"]
[Round "08"]
[TimeControl "180+2"]
[Date "2023.02.28"]
[WhiteClock "0:00:03"]
[BlackClock "0:00:27"]

1. e4 {[%clk 0:02:59]}  c5 {[%clk 0:02:59]} 2. Nc3 {[%clk 0:02:58]}  Nc6 {[%clk 0:02:58]} 3. f4 {[%clk 0:02:55]}  g6 {[%clk 0:02:58]} 4. Nf3 {[%clk 0:02:54]}  Bg7 {[%clk 0:02:58]} 5. Bc4 {[%clk 0:02:54]}  e6 {[%clk 0:02:58]} 6. d3 {[%clk 0:02:54]}  Nge7 {[%clk 0:02:58]} 7. O-O {[%clk 0:02:50]}  O-O {[%clk 0:02:58]} 8. Kh1 {[%clk 0:02:46]}  d5 {[%clk 0:02:56]} 9. Bb3 {[%clk 0:02:46]}  Na5 {[%clk 0:02:55]} 10. Qe1 {[%clk 0:02:41]}  c4 {[%clk 0:02:52]} 11. dxc4 {[%clk 0:02:27]}  dxc4 {[%clk 0:02:53]} 12. Ba4 {[%clk 0:02:27]}  a6 {[%clk 0:02:53]} 13. Be3 {[%clk 0:01:45]}  b5 {[%clk 0:02:52]} 14. Rd1 {[%clk 0:01:46]}  Qc7 {[%clk 0:02:51]} 15. Bxb5 {[%clk 0:01:45]}  axb5 {[%clk 0:02:48]} 16. Nxb5 {[%clk 0:01:45]}  Qc6 {[%clk 0:02:41]} 17. Nd6 {[%clk 0:01:36]}  Nb7 {[%clk 0:02:20]} 18. e5 {[%clk 0:01:33]}  Rxa2 {[%clk 0:02:11]} 19. Qh4 {[%clk 0:01:29]}  Nf5 {[%clk 0:02:06]} 20. Nxf5 {[%clk 0:01:28]}  exf5 {[%clk 0:02:06]} 21. Bd4 {[%clk 0:01:18]}  Nc5 {[%clk 0:01:57]} 22. Qe7 {[%clk 0:00:47]}  Ne4 {[%clk 0:01:39]} 23. Ra1 {[%clk 0:00:38]}  Rxa1 {[%clk 0:01:36]} 24. Rxa1 {[%clk 0:00:39]}  Re8 {[%clk 0:01:21]} 25. Qb4 {[%clk 0:00:34]}  Be6 {[%clk 0:01:12]} 26. Ra7 {[%clk 0:00:30]}  h6 {[%clk 0:01:03]} 27. Qa3 {[%clk 0:00:20]}  Bf8 {[%clk 0:00:58]} 28. Qa1 {[%clk 0:00:18]}  Rd8 {[%clk 0:00:50]} 29. c3 {[%clk 0:00:16]}  Nc5 {[%clk 0:00:42]} 30. Bg1 {[%clk 0:00:12]}  Bd5 {[%clk 0:00:39]} 31. Qf1 {[%clk 0:00:07]}  Nd3 {[%clk 0:00:37]} 32. Ra2 {[%clk 0:00:02]}  Bxf3 {[%clk 0:00:35]} 33. gxf3 {[%clk 0:00:03]}  Rb8 {[%clk 0:00:32]} 34. Qe2 {[%clk 0:00:02]}  Bc5 {[%clk 0:00:28]} 35. Bxc5 {[%clk 0:00:03]}  Qxc5 {[%clk 0:00:28]} 36. Kg2 {[%clk 0:00:03]}  Nxf4+ {[%clk 0:00:27]} 0-1


[Site "https://www.chess.com"]

[Event "Titled Tuesday Blitz February 28 Late 2023"]
[White "Seletsky, Grigory"]
[Black "Matsuura, Frederico"]
[WhiteFideId "14112191"]
[BlackFideId "2107848"]
[WhiteElo "2490"]
[BlackElo "2302"]
[Result "0-1"]
[Round "08"]
[TimeControl "180+2"]
[Date "2023.02.28"]
[WhiteClock "0:00:01"]
[BlackClock "0:00:03"]

1. e4 {[%clk 0:02:51]}  e6 {[%clk 0:03:00]} 2. Qe2 {[%clk 0:02:50]}  e5 {[%clk 0:02:56]} 3. Nf3 {[%clk 0:02:48]}  Nc6 {[%clk 0:02:56]} 4. c3 {[%clk 0:02:49]}  d5 {[%clk 0:02:44]} 5. d3 {[%clk 0:02:49]}  Nf6 {[%clk 0:02:39]} 6. g3 {[%clk 0:02:47]}  Bc5 {[%clk 0:02:36]} 7. Bg2 {[%clk 0:02:47]}  dxe4 {[%clk 0:02:30]} 8. dxe4 {[%clk 0:02:46]}  a5 {[%clk 0:02:30]} 9. O-O {[%clk 0:02:29]}  O-O {[%clk 0:02:29]} 10. Rd1 {[%clk 0:02:27]}  Qe7 {[%clk 0:02:28]} 11. h3 {[%clk 0:02:27]}  h6 {[%clk 0:02:16]} 12. Nbd2 {[%clk 0:02:24]}  Be6 {[%clk 0:02:10]} 13. Nc4 {[%clk 0:02:16]}  Nd7 {[%clk 0:02:03]} 14. Ne3 {[%clk 0:02:10]}  Bxe3 {[%clk 0:01:46]} 15. Bxe3 {[%clk 0:02:08]}  Nb6 {[%clk 0:01:45]} 16. Nh4 {[%clk 0:02:03]}  Nc4 {[%clk 0:01:39]} 17. Nf5 {[%clk 0:01:59]}  Bxf5 {[%clk 0:01:39]} 18. exf5 {[%clk 0:01:59]}  Nxe3 {[%clk 0:01:38]} 19. Qxe3 {[%clk 0:01:59]}  Qf6 {[%clk 0:01:33]} 20. g4 {[%clk 0:01:58]}  Rad8 {[%clk 0:01:26]} 21. Qc5 {[%clk 0:01:55]}  h5 {[%clk 0:01:10]} 22. a3 {[%clk 0:01:47]}  hxg4 {[%clk 0:01:06]} 23. hxg4 {[%clk 0:01:47]}  Qg5 {[%clk 0:01:03]} 24. Qc4 {[%clk 0:01:45]}  Rd6 {[%clk 0:00:58]} 25. Rxd6 {[%clk 0:01:43]}  cxd6 {[%clk 0:00:58]} 26. Rd1 {[%clk 0:01:43]}  Rd8 {[%clk 0:00:56]} 27. Bd5 {[%clk 0:01:43]}  Rd7 {[%clk 0:00:45]} 28. Kg2 {[%clk 0:01:34]}  g6 {[%clk 0:00:34]} 29. fxg6 {[%clk 0:01:25]}  Qxg6 {[%clk 0:00:34]} 30. Qe4 {[%clk 0:01:24]}  Qg5 {[%clk 0:00:30]} 31. Rh1 {[%clk 0:01:14]}  Kf8 {[%clk 0:00:29]} 32. Rh5 {[%clk 0:01:11]}  Qg8 {[%clk 0:00:21]} 33. Qf5 {[%clk 0:01:09]}  Ke7 {[%clk 0:00:19]} 34. Rh7 {[%clk 0:00:59]}  Nd8 {[%clk 0:00:18]} 35. Rh6 {[%clk 0:00:58]}  Qg7 {[%clk 0:00:17]} 36. g5 {[%clk 0:00:55]}  Ke8 {[%clk 0:00:14]} 37. Rh7 {[%clk 0:00:49]}  Qg8 {[%clk 0:00:12]} 38. Kf1 {[%clk 0:00:47]}  Re7 {[%clk 0:00:11]} 39. f3 {[%clk 0:00:46]}  Ne6 {[%clk 0:00:10]} 40. Bxe6 {[%clk 0:00:42]}  Rxe6 {[%clk 0:00:09]} 41. c4 {[%clk 0:00:38]}  Ke7 {[%clk 0:00:09]} 42. Kf2 {[%clk 0:00:26]}  Rg6 {[%clk 0:00:09]} 43. Rh5 {[%clk 0:00:24]}  Qg7 {[%clk 0:00:09]} 44. b4 {[%clk 0:00:21]}  axb4 {[%clk 0:00:08]} 45. axb4 {[%clk 0:00:21]}  Re6 {[%clk 0:00:08]} 46. Qe4 {[%clk 0:00:17]}  Qg8 {[%clk 0:00:06]} 47. Qxb7+ {[%clk 0:00:17]}  Kf8 {[%clk 0:00:06]} 48. Qc8+ {[%clk 0:00:16]}  Kg7 {[%clk 0:00:06]} 49. Qxg8+ {[%clk 0:00:15]}  Kxg8 {[%clk 0:00:07]} 50. Ke3 {[%clk 0:00:15]}  Re8 {[%clk 0:00:06]} 51. Rh6 {[%clk 0:00:15]}  Rb8 {[%clk 0:00:05]} 52. b5 {[%clk 0:00:13]}  Rd8 {[%clk 0:00:05]} 53. Ke4 {[%clk 0:00:13]}  Kg7 {[%clk 0:00:04]} 54. Kd5 {[%clk 0:00:13]}  f5 {[%clk 0:00:02]} 55. Rxd6 {[%clk 0:00:06]}  Re8 {[%clk 0:00:02]} 56. Rf6 {[%clk 0:00:04]}  e4 {[%clk 0:00:01]} 57. fxe4 {[%clk 0:00:03]}  fxe4 {[%clk 0:00:02]} 58. Rf2 {[%clk 0:00:04]}  e3 {[%clk 0:00:02]} 59. Re2 {[%clk 0:00:04]}  Kg6 {[%clk 0:00:03]} 60. b6 {[%clk 0:00:04]}  Kxg5 {[%clk 0:00:03]} 61. c5 {[%clk 0:00:03]}  Kf4 {[%clk 0:00:03]} 62. c6 {[%clk 0:00:04]}  Rd8+ {[%clk 0:00:04]} 63. Kc5 {[%clk 0:00:02]}  Rd1 {[%clk 0:00:03]} 64. b7 {[%clk 0:00:01]}  Rc1+ {[%clk 0:00:03]} 0-1


[Site "https://www.chess.com"]

[Event "Titled Tuesday Blitz February 28 Late 2023"]
[White "Sokolin, Leonid"]
[Black "Dorato, Adriano"]
[WhiteFideId "2009161"]
[BlackFideId "2802894"]
[WhiteElo "2394"]
[BlackElo "1709"]
[Result "0-1"]
[Round "08"]
[TimeControl "180+2"]
[Date "2023.02.28"]
[WhiteClock "0:00:02"]
[BlackClock "0:00:10"]

1. e4 {[%clk 0:03:00]}  c5 {[%clk 0:02:58]} 2. Nf3 {[%clk 0:03:00]}  g6 {[%clk 0:02:57]} 3. c3 {[%clk 0:03:00]}  d5 {[%clk 0:02:56]} 4. e5 {[%clk 0:02:59]}  Bg7 {[%clk 0:02:55]} 5. d4 {[%clk 0:02:59]}  Nc6 {[%clk 0:02:55]} 6. dxc5 {[%clk 0:02:51]}  Nxe5 {[%clk 0:02:54]} 7. Nxe5 {[%clk 0:02:47]}  Bxe5 {[%clk 0:02:55]} 8. Bb5+ {[%clk 0:02:44]}  Kf8 {[%clk 0:02:35]} 9. Be3 {[%clk 0:02:24]}  Bg7 {[%clk 0:02:15]} 10. O-O {[%clk 0:02:23]}  Nf6 {[%clk 0:02:08]} 11. h3 {[%clk 0:02:22]}  Bd7 {[%clk 0:02:02]} 12. a4 {[%clk 0:02:16]}  a6 {[%clk 0:01:57]} 13. Bxd7 {[%clk 0:02:04]}  Qxd7 {[%clk 0:01:58]} 14. Nd2 {[%clk 0:02:01]}  h5 {[%clk 0:01:36]} 15. Nf3 {[%clk 0:01:51]}  Rc8 {[%clk 0:01:14]} 16. Ne5 {[%clk 0:01:35]}  Qc7 {[%clk 0:01:07]} 17. f4 {[%clk 0:01:28]}  e6 {[%clk 0:00:57]} 18. b4 {[%clk 0:01:20]}  Ne4 {[%clk 0:00:45]} 19. Bd4 {[%clk 0:01:20]}  Ng3 {[%clk 0:00:41]} 20. Re1 {[%clk 0:01:12]}  Nf5 {[%clk 0:00:28]} 21. b5 {[%clk 0:01:05]}  axb5 {[%clk 0:00:20]} 22. axb5 {[%clk 0:01:04]}  Bf6 {[%clk 0:00:19]} 23. Ra7 {[%clk 0:01:02]}  Kg7 {[%clk 0:00:19]} 24. c6 {[%clk 0:01:00]}  Nxd4 {[%clk 0:00:19]} 25. cxd4 {[%clk 0:00:58]}  Rb8 {[%clk 0:00:19]} 26. Qa4 {[%clk 0:00:44]}  Bxe5 {[%clk 0:00:18]} 27. fxe5 {[%clk 0:00:43]}  Qb6 {[%clk 0:00:18]} 28. Rc1 {[%clk 0:00:22]}  Rhc8 {[%clk 0:00:17]} 29. Rc5 {[%clk 0:00:22]}  bxc6 {[%clk 0:00:16]} 30. bxc6 {[%clk 0:00:20]}  Qb1+ {[%clk 0:00:16]} 31. Kh2 {[%clk 0:00:19]}  Qf5 {[%clk 0:00:15]} 32. Qa3 {[%clk 0:00:10]}  Qf4+ {[%clk 0:00:15]} 33. Qg3 {[%clk 0:00:10]}  Qxd4 {[%clk 0:00:14]} 34. Rca5 {[%clk 0:00:06]}  Rxc6 {[%clk 0:00:12]} 35. Ra4 {[%clk 0:00:06]}  Qc5 {[%clk 0:00:11]} 36. Qf4 {[%clk 0:00:05]}  Rc7 {[%clk 0:00:11]} 37. Qf6+ {[%clk 0:00:02]}  Kh7 {[%clk 0:00:10]} 0-1


[Site "https://www.chess.com"]

[Event "Titled Tuesday Blitz February 28 Late 2023"]
[White "Filgueira, Hernan"]
[Black "Chemin, Justo Reinaldo"]
[WhiteFideId "101770"]
[BlackFideId "2101580"]
[WhiteElo "2363"]
[BlackElo "1940"]
[Result "1-0"]
[Round "08"]
[TimeControl "180+2"]
[Date "2023.02.28"]
[WhiteClock "0:00:34"]
[BlackClock "0:00:04"]

1. c4 {[%clk 0:03:00]}  e6 {[%clk 0:02:59]} 2. Nc3 {[%clk 0:02:51]}  d5 {[%clk 0:03:00]} 3. d4 {[%clk 0:02:51]}  c6 {[%clk 0:02:59]} 4. e3 {[%clk 0:02:51]}  Nf6 {[%clk 0:02:58]} 5. Nf3 {[%clk 0:02:50]}  Nbd7 {[%clk 0:02:58]} 6. Bd3 {[%clk 0:02:49]}  Bd6 {[%clk 0:02:57]} 7. O-O {[%clk 0:02:47]}  Qe7 {[%clk 0:02:57]} 8. e4 {[%clk 0:02:47]}  dxc4 {[%clk 0:02:54]} 9. Bxc4 {[%clk 0:02:47]}  e5 {[%clk 0:02:54]} 10. d5 {[%clk 0:02:43]}  O-O {[%clk 0:02:42]} 11. dxc6 {[%clk 0:02:42]}  bxc6 {[%clk 0:02:41]} 12. h3 {[%clk 0:02:42]}  Nc5 {[%clk 0:02:35]} 13. Qe2 {[%clk 0:02:36]}  Be6 {[%clk 0:02:33]} 14. Bxe6 {[%clk 0:02:02]}  Nxe6 {[%clk 0:02:27]} 15. Qc4 {[%clk 0:02:01]}  Rac8 {[%clk 0:02:19]} 16. Be3 {[%clk 0:01:55]}  Nh5 {[%clk 0:02:17]} 17. g3 {[%clk 0:01:53]}  Kh8 {[%clk 0:02:07]} 18. Rad1 {[%clk 0:01:49]}  Bb8 {[%clk 0:01:55]} 19. Rd2 {[%clk 0:01:43]}  f5 {[%clk 0:01:44]} 20. exf5 {[%clk 0:01:40]}  Rxf5 {[%clk 0:01:42]} 21. Qg4 {[%clk 0:01:36]}  Rcf8 {[%clk 0:01:37]} 22. Nh4 {[%clk 0:01:32]}  g6 {[%clk 0:01:01]} 23. Nxf5 {[%clk 0:01:28]}  Rxf5 {[%clk 0:01:00]} 24. Rfd1 {[%clk 0:01:24]}  Nf6 {[%clk 0:00:52]} 25. Qc4 {[%clk 0:01:20]}  e4 {[%clk 0:00:38]} 26. Nxe4 {[%clk 0:01:11]}  Nd5 {[%clk 0:00:30]} 27. Qxc6 {[%clk 0:00:55]}  Nxe3 {[%clk 0:00:30]} 28. fxe3 {[%clk 0:00:53]}  Rf8 {[%clk 0:00:20]} 29. Rd7 {[%clk 0:00:45]}  Qb4 {[%clk 0:00:19]} 30. Qc3+ {[%clk 0:00:44]}  Qxc3 {[%clk 0:00:19]} 31. bxc3 {[%clk 0:00:43]}  h6 {[%clk 0:00:12]} 32. Rf1 {[%clk 0:00:38]}  Rc8 {[%clk 0:00:09]} 33. Rff7 {[%clk 0:00:35]}  Rc4 {[%clk 0:00:05]} 34. Rh7+ {[%clk 0:00:33]}  Kg8 {[%clk 0:00:04]} 35. Nf6+ {[%clk 0:00:33]}  Kf8 {[%clk 0:00:04]} 36. Rdf7# {[%clk 0:00:34]} 1-0


[Site "https://www.chess.com"]

[Event "Titled Tuesday Blitz February 28 Late 2023"]
[White "Dudzinski, Pawel"]
[Black "Estrada Nieto, Julian"]
[WhiteFideId "1117890"]
[BlackFideId "5101018"]
[WhiteElo "2099"]
[BlackElo "2176"]
[Result "1-0"]
[Round "08"]
[TimeControl "180+2"]
[Date "2023.02.28"]
[WhiteClock "0:00:11"]
[BlackClock "0:00:09"]

1. e4 {[%clk 0:03:00]}  e5 {[%clk 0:03:00]} 2. Nf3 {[%clk 0:03:00]}  Nc6 {[%clk 0:03:00]} 3. d4 {[%clk 0:03:00]}  exd4 {[%clk 0:03:00]} 4. Nxd4 {[%clk 0:03:01]}  Nf6 {[%clk 0:03:00]} 5. Nxc6 {[%clk 0:03:00]}  bxc6 {[%clk 0:03:01]} 6. e5 {[%clk 0:03:00]}  Qe7 {[%clk 0:03:01]} 7. Qe2 {[%clk 0:03:00]}  Nd5 {[%clk 0:03:02]} 8. c4 {[%clk 0:03:01]}  Nb6 {[%clk 0:03:02]} 9. Nd2 {[%clk 0:02:59]}  Qe6 {[%clk 0:02:57]} 10. Qe4 {[%clk 0:02:58]}  g6 {[%clk 0:02:56]} 11. Bd3 {[%clk 0:02:51]}  Bg7 {[%clk 0:02:55]} 12. O-O {[%clk 0:02:50]}  Ba6 {[%clk 0:02:55]} 13. Re1 {[%clk 0:02:33]}  O-O {[%clk 0:02:55]} 14. b3 {[%clk 0:02:25]}  d5 {[%clk 0:02:49]} 15. cxd5 {[%clk 0:02:24]}  cxd5 {[%clk 0:02:49]} 16. Qe2 {[%clk 0:02:23]}  Bxd3 {[%clk 0:02:46]} 17. Qxd3 {[%clk 0:02:23]}  f6 {[%clk 0:02:05]} 18. Ba3 {[%clk 0:02:08]}  Rf7 {[%clk 0:01:50]} 19. exf6 {[%clk 0:01:58]}  Qxf6 {[%clk 0:01:50]} 20. Nf3 {[%clk 0:01:59]}  Qc3 {[%clk 0:01:42]} 21. Rad1 {[%clk 0:01:55]}  a5 {[%clk 0:01:28]} 22. Qxc3 {[%clk 0:01:36]}  Bxc3 {[%clk 0:01:27]} 23. Re3 {[%clk 0:01:37]}  Bg7 {[%clk 0:01:21]} 24. Bc5 {[%clk 0:01:28]}  a4 {[%clk 0:01:21]} 25. Bxb6 {[%clk 0:01:06]}  cxb6 {[%clk 0:01:20]} 26. Rxd5 {[%clk 0:01:04]}  axb3 {[%clk 0:01:20]} 27. axb3 {[%clk 0:00:57]}  Ra1+ {[%clk 0:01:15]} 28. Re1 {[%clk 0:00:57]}  Rxe1+ {[%clk 0:01:08]} 29. Nxe1 {[%clk 0:00:56]}  Ra7 {[%clk 0:01:07]} 30. Kf1 {[%clk 0:00:31]}  Ra1 {[%clk 0:00:59]} 31. Ke2 {[%clk 0:00:31]}  Ra2+ {[%clk 0:00:57]} 32. Kf3 {[%clk 0:00:15]}  Rb2 {[%clk 0:00:54]} 33. Rb5 {[%clk 0:00:14]}  Bd4 {[%clk 0:00:50]} 34. Nd3 {[%clk 0:00:14]}  Rb1 {[%clk 0:00:45]} 35. Ke4 {[%clk 0:00:13]}  Bc3 {[%clk 0:00:38]} 36. Rxb6 {[%clk 0:00:13]}  Rf1 {[%clk 0:00:34]} 37. b4 {[%clk 0:00:12]}  Rb1 {[%clk 0:00:29]} 38. b5 {[%clk 0:00:12]}  Ba5 {[%clk 0:00:29]} 39. Rb7 {[%clk 0:00:10]}  Rb3 {[%clk 0:00:27]} 40. g4 {[%clk 0:00:10]}  h6 {[%clk 0:00:25]} 41. h4 {[%clk 0:00:10]}  Kf8 {[%clk 0:00:25]} 42. h5 {[%clk 0:00:10]}  gxh5 {[%clk 0:00:25]} 43. gxh5 {[%clk 0:00:11]}  Ke8 {[%clk 0:00:25]} 44. f4 {[%clk 0:00:11]}  Kd8 {[%clk 0:00:25]} 45. f5 {[%clk 0:00:12]}  Kc8 {[%clk 0:00:25]} 46. Rh7 {[%clk 0:00:07]}  Rxb5 {[%clk 0:00:24]} 47. Rxh6 {[%clk 0:00:08]}  Bc3 {[%clk 0:00:17]} 48. Rh7 {[%clk 0:00:08]}  Ra5 {[%clk 0:00:16]} 49. h6 {[%clk 0:00:09]}  Ra4+ {[%clk 0:00:16]} 50. Kf3 {[%clk 0:00:08]}  Rd4 {[%clk 0:00:16]} 51. Nf4 {[%clk 0:00:08]}  Bd2 {[%clk 0:00:16]} 52. Ne6 {[%clk 0:00:08]}  Rd3+ {[%clk 0:00:16]} 53. Ke4 {[%clk 0:00:06]}  Re3+ {[%clk 0:00:16]} 54. Kd5 {[%clk 0:00:07]}  Rf3 {[%clk 0:00:16]} 55. Ke4 {[%clk 0:00:06]}  Re3+ {[%clk 0:00:15]} 56. Kd4 {[%clk 0:00:07]}  Rf3 {[%clk 0:00:15]} 57. Rc7+ {[%clk 0:00:07]}  Kb8 {[%clk 0:00:15]} 58. Rf7 {[%clk 0:00:08]}  Bc3+ {[%clk 0:00:12]} 59. Ke4 {[%clk 0:00:08]}  Rf1 {[%clk 0:00:12]} 60. h7 {[%clk 0:00:08]}  Kc8 {[%clk 0:00:11]} 61. h8=Q+ {[%clk 0:00:08]}  Bxh8 {[%clk 0:00:10]} 62. Rf8+ {[%clk 0:00:09]}  Kd7 {[%clk 0:00:10]} 63. Rxh8 {[%clk 0:00:09]}  Re1+ {[%clk 0:00:11]} 64. Kd5 {[%clk 0:00:09]}  Rf1 {[%clk 0:00:10]} 65. Ke5 {[%clk 0:00:10]}  Re1+ {[%clk 0:00:10]} 66. Kf6 {[%clk 0:00:10]}  Rg1 {[%clk 0:00:09]} 67. Rh7+ {[%clk 0:00:11]}  Kd6 {[%clk 0:00:09]} 68. Rg7 {[%clk 0:00:10]}  Rf1 {[%clk 0:00:08]} 69. Rg8 {[%clk 0:00:10]}  Rf2 {[%clk 0:00:08]} 70. Rd8+ {[%clk 0:00:10]}  Kc6 {[%clk 0:00:08]} 71. Rd1 {[%clk 0:00:10]}  Rf3 {[%clk 0:00:08]} 72. Kg6 {[%clk 0:00:10]}  Rg3+ {[%clk 0:00:09]} 73. Kf7 {[%clk 0:00:11]}  Rf3 {[%clk 0:00:09]} 74. Nd4+ {[%clk 0:00:10]}  Kd5 {[%clk 0:00:08]} 75. Nxf3+ {[%clk 0:00:11]}  Ke4 {[%clk 0:00:09]} 76. Nh4 {[%clk 0:00:11]} 1-0


[Site "https://www.chess.com"]

[Event "Titled Tuesday Blitz February 28 Late 2023"]
[White "Haszon, David"]
[Black "Lucassen, Mickey"]
[WhiteFideId "733610"]
[BlackFideId "12919110"]
[WhiteElo "2210"]
[BlackElo "2357"]
[Result "1-0"]
[Round "08"]
[TimeControl "180+2"]
[Date "2023.02.28"]
[WhiteClock "0:01:16"]
[BlackClock "0:00:08"]

1. d4 {[%clk 0:03:00]}  Nf6 {[%clk 0:02:47]} 2. Bf4 {[%clk 0:03:00]}  g6 {[%clk 0:02:46]} 3. Nc3 {[%clk 0:03:00]}  d5 {[%clk 0:02:45]} 4. Qd2 {[%clk 0:02:58]}  c5 {[%clk 0:02:44]} 5. e3 {[%clk 0:02:55]}  Nc6 {[%clk 0:02:43]} 6. Nb5 {[%clk 0:02:55]}  e5 {[%clk 0:02:38]} 7. dxe5 {[%clk 0:02:54]}  Nh5 {[%clk 0:02:22]} 8. Qxd5 {[%clk 0:02:54]}  Nxf4 {[%clk 0:02:20]} 9. exf4 {[%clk 0:02:53]}  Qa5+ {[%clk 0:02:17]} 10. Qd2 {[%clk 0:02:39]}  Qb6 {[%clk 0:02:11]} 11. O-O-O {[%clk 0:02:34]}  Be6 {[%clk 0:02:06]} 12. Nc3 {[%clk 0:02:08]}  Bh6 {[%clk 0:01:54]} 13. g3 {[%clk 0:02:03]}  O-O {[%clk 0:01:50]} 14. h4 {[%clk 0:01:52]}  Rfd8 {[%clk 0:01:38]} 15. Qe1 {[%clk 0:01:53]}  Rxd1+ {[%clk 0:01:34]} 16. Qxd1 {[%clk 0:01:54]}  Rd8 {[%clk 0:01:33]} 17. Qf3 {[%clk 0:01:47]}  Nd4 {[%clk 0:01:32]} 18. Qe3 {[%clk 0:01:41]}  Qc6 {[%clk 0:01:11]} 19. f3 {[%clk 0:01:40]}  Nf5 {[%clk 0:01:07]} 20. Qf2 {[%clk 0:01:35]}  Qc7 {[%clk 0:00:37]} 21. Nh3 {[%clk 0:01:30]}  Qxe5 {[%clk 0:00:34]} 22. Ng5 {[%clk 0:01:30]}  Bxg5 {[%clk 0:00:32]} 23. hxg5 {[%clk 0:01:31]}  Qe3+ {[%clk 0:00:20]} 24. Qxe3 {[%clk 0:01:29]}  Nxe3 {[%clk 0:00:21]} 25. Bd3 {[%clk 0:01:23]}  Bf5 {[%clk 0:00:21]} 26. Be4 {[%clk 0:01:18]}  b6 {[%clk 0:00:13]} 27. Re1 {[%clk 0:01:16]}  Ng2 {[%clk 0:00:12]} 28. Re2 {[%clk 0:01:16]}  Bxe4 {[%clk 0:00:08]} 29. fxe4 {[%clk 0:01:16]} 1-0


[Site "https://www.chess.com"]

[Event "Titled Tuesday Blitz February 28 Late 2023"]
[White "Pino Perez, Lazaro"]
[Black "Zampronha, Wladimir Camilo"]
[WhiteFideId "3517055"]
[BlackFideId "2103087"]
[WhiteElo "2170"]
[BlackElo "2176"]
[Result "1-0"]
[Round "08"]
[TimeControl "180+2"]
[Date "2023.02.28"]
[WhiteClock "0:00:11"]
[BlackClock "0:00:07"]

1. d4 {[%clk 0:03:00]}  Nf6 {[%clk 0:02:59]} 2. Bf4 {[%clk 0:03:01]}  e6 {[%clk 0:02:59]} 3. e3 {[%clk 0:02:57]}  c5 {[%clk 0:02:59]} 4. Nf3 {[%clk 0:02:52]}  d5 {[%clk 0:03:00]} 5. c3 {[%clk 0:02:49]}  Nc6 {[%clk 0:03:00]} 6. Nbd2 {[%clk 0:02:47]}  Bd6 {[%clk 0:03:01]} 7. Bg3 {[%clk 0:02:47]}  O-O {[%clk 0:03:01]} 8. Bd3 {[%clk 0:02:46]}  Qe7 {[%clk 0:03:01]} 9. Ne5 {[%clk 0:02:30]}  Nd7 {[%clk 0:03:00]} 10. Ndf3 {[%clk 0:02:07]}  Ndxe5 {[%clk 0:02:17]} 11. dxe5 {[%clk 0:02:02]}  Bc7 {[%clk 0:02:17]} 12. O-O {[%clk 0:01:56]}  b6 {[%clk 0:02:15]} 13. e4 {[%clk 0:01:50]}  Bb7 {[%clk 0:02:07]} 14. exd5 {[%clk 0:01:45]}  exd5 {[%clk 0:02:08]} 15. Re1 {[%clk 0:01:45]}  Rfe8 {[%clk 0:01:59]} 16. Bc2 {[%clk 0:01:38]}  Nd8 {[%clk 0:01:41]} 17. Qd3 {[%clk 0:01:28]}  g6 {[%clk 0:01:41]} 18. Ba4 {[%clk 0:01:12]}  Rf8 {[%clk 0:01:26]} 19. Bh4 {[%clk 0:01:07]}  Qe6 {[%clk 0:01:25]} 20. Qd2 {[%clk 0:00:58]}  Nc6 {[%clk 0:01:07]} 21. Qh6 {[%clk 0:00:53]}  Bd8 {[%clk 0:00:39]} 22. Bxd8 {[%clk 0:00:28]}  Rfxd8 {[%clk 0:00:26]} 23. Bxc6 {[%clk 0:00:20]}  Bxc6 {[%clk 0:00:11]} 24. Ng5 {[%clk 0:00:19]}  Qf5 {[%clk 0:00:11]} 25. Qxh7+ {[%clk 0:00:14]}  Kf8 {[%clk 0:00:11]} 26. e6 {[%clk 0:00:14]}  Be8 {[%clk 0:00:09]} 27. exf7 {[%clk 0:00:11]}  Bxf7 {[%clk 0:00:09]} 28. Qh8+ {[%clk 0:00:11]}  Bg8 {[%clk 0:00:07]} 29. Qh6# {[%clk 0:00:11]} 1-0


[Site "https://www.chess.com"]

[Event "Titled Tuesday Blitz February 28 Late 2023"]
[White "Figorito, Nick"]
[Black "Tsyhanchuk, Stanislav"]
[WhiteFideId "30923689"]
[BlackFideId "13505130"]
[WhiteElo "2368"]
[BlackElo "2173"]
[Result "1-0"]
[Round "08"]
[TimeControl "180+2"]
[Date "2023.02.28"]
[WhiteClock "0:00:29"]
[BlackClock "0:00:14"]

1. Nf3 {[%clk 0:03:00]}  d5 {[%clk 0:02:59]} 2. g3 {[%clk 0:03:01]}  c5 {[%clk 0:02:58]} 3. Bg2 {[%clk 0:03:01]}  Nc6 {[%clk 0:02:58]} 4. d4 {[%clk 0:03:02]}  cxd4 {[%clk 0:02:56]} 5. Nxd4 {[%clk 0:03:03]}  e6 {[%clk 0:02:54]} 6. O-O {[%clk 0:03:02]}  g6 {[%clk 0:02:53]} 7. c4 {[%clk 0:03:03]}  Bg7 {[%clk 0:02:51]} 8. Be3 {[%clk 0:02:56]}  Nge7 {[%clk 0:02:43]} 9. Nc3 {[%clk 0:02:51]}  O-O {[%clk 0:02:34]} 10. cxd5 {[%clk 0:02:50]}  exd5 {[%clk 0:02:28]} 11. Rc1 {[%clk 0:02:42]}  Be6 {[%clk 0:02:25]} 12. Qd2 {[%clk 0:02:41]}  Rc8 {[%clk 0:02:24]} 13. Ncb5 {[%clk 0:02:37]}  a6 {[%clk 0:02:21]} 14. Nxc6 {[%clk 0:02:33]}  bxc6 {[%clk 0:02:12]} 15. Nd4 {[%clk 0:02:30]}  Qd6 {[%clk 0:02:08]} 16. Bf4 {[%clk 0:02:21]}  Qd7 {[%clk 0:02:06]} 17. Bh6 {[%clk 0:02:17]}  Bxh6 {[%clk 0:01:40]} 18. Qxh6 {[%clk 0:02:17]}  Nf5 {[%clk 0:01:41]} 19. Nxf5 {[%clk 0:02:14]}  Bxf5 {[%clk 0:01:42]} 20. e3 {[%clk 0:02:01]}  Rfe8 {[%clk 0:01:38]} 21. Qf4 {[%clk 0:01:53]}  Qb7 {[%clk 0:01:37]} 22. b3 {[%clk 0:01:47]}  Be4 {[%clk 0:01:37]} 23. Bxe4 {[%clk 0:01:40]}  Rxe4 {[%clk 0:01:38]} 24. Qf6 {[%clk 0:01:37]}  Re6 {[%clk 0:01:34]} 25. Qd4 {[%clk 0:01:34]}  h5 {[%clk 0:01:28]} 26. h4 {[%clk 0:01:32]}  Qe7 {[%clk 0:01:19]} 27. Rc2 {[%clk 0:01:20]}  g5 {[%clk 0:01:11]} 28. hxg5 {[%clk 0:01:01]}  Qxg5 {[%clk 0:01:12]} 29. Rfc1 {[%clk 0:01:01]}  Re4 {[%clk 0:00:54]} 30. Qd1 {[%clk 0:00:57]}  h4 {[%clk 0:00:50]} 31. Rxc6 {[%clk 0:00:47]}  Rxc6 {[%clk 0:00:50]} 32. Rxc6 {[%clk 0:00:48]}  hxg3 {[%clk 0:00:48]} 33. Rc8+ {[%clk 0:00:48]}  Kh7 {[%clk 0:00:46]} 34. Qf3 {[%clk 0:00:37]}  gxf2+ {[%clk 0:00:13]} 35. Kxf2 {[%clk 0:00:38]}  Re7 {[%clk 0:00:13]} 36. Qh3+ {[%clk 0:00:34]}  Kg7 {[%clk 0:00:13]} 37. Qh8+ {[%clk 0:00:33]}  Kg6 {[%clk 0:00:13]} 38. Rg8+ {[%clk 0:00:33]}  Kf5 {[%clk 0:00:14]} 39. Rxg5+ {[%clk 0:00:32]}  Kxg5 {[%clk 0:00:14]} 40. Qd8 {[%clk 0:00:29]} 1-0


[Site "https://www.chess.com"]